[Event "IIFL Wealth 4th Mumbai GM"]
[Site "Mumbai"]
[Date "2019.01.07"]
[Round "9"]
[White "Rakshitta Ravi"]
[Black "Mahalakshmi, M."]
[Result "0-1"]
[ECO "B12"]
[WhiteElo "2141"]
[BlackElo "2219"]
[Annotator "NA"]
[PlyCount "62"]
[EventDate "2018.12.30"]
[EventType "swiss"]
[EventCountry "IND"]
[SourceTitle "playchess.com"]
[Source "ChessBase"]
[SourceQuality "1"]
[TimeControl "40/5400+30:1800+30"]

1. e4 {[%emt 0:00:14]} c6 {[%emt 0:00:00]} 2. d4 {[%emt 0:00:08]} d5 {[%emt 0:00:00]} 3. e5 {[%emt 0:00:12]} c5 {[%emt 0:01:27]} 4. Nf3 {[%emt 0:00:16]} e6 {[%emt 0:01:40]} 5. c4 {[%emt 0:04:01]} cxd4 {[%emt 0:01:14]} 6. Nxd4 {[%emt 0:03:16]} Nc6 {[%emt 0:02:46]} 7. Nc3 {[%emt 0:03:57]} Nge7 {[%emt 0:05:32]} 8. Ndb5 {[%emt 0:09:32]} Nxe5 {[%emt 0:04:41]} 9. cxd5 {[%emt 0:02:33]} Nxd5 {[%emt 0:03:42]} 10. Nxd5 {[%emt 0:02:57]} exd5 {[%emt 0:00:24]} 11. Qxd5 {[%emt 0:17:36]} Bb4+ {[%emt 0:03:19]} 12. Bd2 {[%emt 0:00:07]} Bxd2+ {[%emt 0:02:44]} 13. Qxd2 {[%emt 0:00:02]} Qxd2+ {[%emt 0:01:37]} 14. Kxd2 {[%emt 0:00:02]} O-O {[%emt 0:00:19]} 15. Re1 {[%emt 0:00:13]} Nc6 {[%emt 0:01:33]} 16. Kc1 {[%emt 0:19:23]} Bf5 {[%emt 0:04:09]} 17. Nd6 {[%emt 0:00:32]} Bg6 {[%emt 0:05:57]} 18. b3 {[%emt 0:01:36]} b6 {[%emt 0:05:31]} 19. Kb2 {[%emt 0:02:34]} Rfd8 {[%emt 0:04:31]} 20. Rd1 {[%emt 0:00:38]} Rd7 {[%emt 0:01:02]} 21. Bb5 {[%emt 0:09:37]} Rad8 {[%emt 0:02:24]} 22. Rhe1 {[%emt 0:00:26]} h6 {[%emt 0:02:08]} 23. Bxc6 {[%emt 0:00:19]} Rxd6 {[%emt 0:00:06]} 24. Rxd6 {[%emt 0:00:13]} Rxd6 {[%emt 0:00:02]} 25. Re8+ {[%emt 0:00:34]} Kh7 {[%emt 0:00:03]} 26. Bf3 {[%emt 0:00:12]} Rd2+ {[%emt 0:02:19]} 27. Ka1 {[%emt 0:00:02]} Rxf2 {[%emt 0:01:20]} 28. Ra8 {[%emt 0:00:07]} Rf1+ {[%emt 0:02:28]} 29. Kb2 {[%emt 0:00:01]} Rf2+ {[%emt 0:03:01]} 30. Ka1 {[%emt 0:00:11]} a5 {[%emt 0:01:15]} 31. Rb8 {[%emt 0:00:58]} Bd3 {[%emt 0:03:39]} 0-1

[Event "IIFL Wealth 4th Mumbai GM"]
[Site "Mumbai"]
[Date "2019.01.07"]
[Round "9"]
[White "Gandhi, Anish"]
[Black "Banerjee, Sushant"]
[Result "1-0"]
[ECO "D34"]
[WhiteElo "2134"]
[BlackElo "2198"]
[Annotator "NA"]
[PlyCount "42"]
[EventDate "2018.12.30"]
[EventType "swiss"]
[EventCountry "IND"]
[SourceTitle "playchess.com"]
[Source "ChessBase"]
[SourceQuality "1"]
[TimeControl "40/5400+30:1800+30"]

1. Nf3 {[%emt 0:00:00]} Nf6 {[%emt 0:00:32]} 2. c4 {[%emt 0:00:30]} c5 {[%emt 0:00:40]} 3. Nc3 {[%emt 0:02:00]} e6 {[%emt 0:00:11]} 4. g3 {[%emt 0:00:14]} d5 {[%emt 0:00:23]} 5. cxd5 {[%emt 0:00:51]} exd5 {[%emt 0:00:17]} 6. d4 {[%emt 0:00:15]} Nc6 {[%emt 0:00:07]} 7. Bg2 {[%emt 0:00:30]} Be7 {[%emt 0:00:13]} 8. O-O {[%emt 0:00:51]} Be6 {[%emt 0:00:25]} 9. dxc5 {[%emt 0:02:39]} Bxc5 {[%emt 0:00:51]} 10. Na4 {[%emt 0:02:21]} Be7 {[%emt 0:00:36]} 11. Nd4 {[%emt 0:02:24]} Nxd4 {[%emt 0:04:17]} 12. Qxd4 {[%emt 0:01:05]} O-O {[%emt 0:00:06]} 13. Nc5 {[%emt 0:09:35]} Bg4 {[%emt 0:04:45]} 14. Bg5 {[%emt 0:09:44]} b6 {[%emt 0:13:31]} 15. Bxf6 {[%emt 0:12:58]} Bxf6 {[%emt 0:00:18]} 16. Qxg4 {[%emt 0:00:17]} bxc5 {[%emt 0:00:11]} 17. Rfd1 {[%emt 0:06:44]} Rb8 {[%emt 0:06:38]} 18. Bxd5 {[%emt 0:03:04]} Qc8 {[%emt 0:02:12]} 19. Qxc8 {[%emt 0:09:33]} Rd8 20. Qxb8 Rxb8 {[%emt 0:02:39]} 21. Rac1 {[%emt 0:03:58]} Be5 {[%emt 0:11:50]} 1-0

[Event "IIFL Wealth 4th Mumbai GM"]
[Site "Mumbai"]
[Date "2019.01.07"]
[Round "9"]
[White "Prajesh R"]
[Black "Mrudul Dehankar"]
[Result "0-1"]
[ECO "A46"]
[WhiteElo "2102"]
[BlackElo "2199"]
[Annotator "NA"]
[PlyCount "27"]
[EventDate "2018.12.30"]
[EventType "swiss"]
[EventCountry "IND"]
[SourceTitle "playchess.com"]
[Source "ChessBase"]
[SourceQuality "1"]
[TimeControl "40/5400+30:1800+30"]

1. d4 {[%emt 0:00:00]} Nf6 {[%emt 0:00:54]} 2. Nf3 {[%emt 0:00:00]} e6 {[%emt 0:00:06]} 3. Bg5 {[%emt 0:00:05]} h6 {[%emt 0:01:02]} 4. Bxf6 {[%emt 0:00:05]} Qxf6 {[%emt 0:00:19]} 5. e4 {[%emt 0:00:27]} d6 {[%emt 0:00:54]} 6. Bd3 {[%emt 0:09:45]} Nc6 {[%emt 0:03:25]} 7. Nc3 {[%emt 0:01:15]} a6 {[%emt 0:06:29]} 8. Qd2 {[%emt 0:11:40]} Bd7 {[%emt 0:07:13]} 9. Qe3 {[%emt 0:02:09]} g5 {[%emt 0:12:49]} 10. e5 {[%emt 0:08:07]} dxe5 {[%emt 0:11:10]} 11. dxe5 {[%emt 0:21:05]} Qe7 {[%emt 0:12:48]} 12. h3 {[%emt 0:25:14]} Qb4 {[%emt 0:15:25]} 13. O-O-O {[%emt 0:02:03]} O-O-O {[%emt 0:02:03]} 14. Kb1 {[%emt 0:08:28]} 0-1

[Event "IIFL Wealth 4th Mumbai GM"]
[Site "Mumbai"]
[Date "2019.01.07"]
[Round "9"]
[White "Thipsay, Bagyashree Sathe"]
[Black "Divya Deshmukh"]
[Result "1-0"]
[ECO "B84"]
[WhiteElo "2028"]
[BlackElo "2190"]
[Annotator "NA"]
[PlyCount "39"]
[EventDate "2018.12.30"]
[EventType "swiss"]
[EventCountry "IND"]
[SourceTitle "playchess.com"]
[Source "ChessBase"]
[SourceQuality "1"]
[TimeControl "40/5400+30:1800+30"]

1. e4 {[%emt 0:01:42]} c5 {[%emt 0:00:00]} 2. Nf3 {[%emt 0:00:07]} d6 {[%emt 0:00:00]} 3. d4 {[%emt 0:00:05]} cxd4 {[%emt 0:00:00]} 4. Nxd4 {[%emt 0:00:05]} Nf6 {[%emt 0:00:00]} 5. Nc3 {[%emt 0:00:06]} a6 {[%emt 0:00:02]} 6. Be2 {[%emt 0:00:03]} e6 {[%emt 0:00:04]} 7. O-O {[%emt 0:00:57]} Be7 {[%emt 0:00:05]} 8. f4 {[%emt 0:00:13]} Qc7 {[%emt 0:00:06]} 9. Kh1 {[%emt 0:02:22]} Nc6 {[%emt 0:01:46]} 10. Be3 {[%emt 0:00:48]} O-O {[%emt 0:00:51]} 11. Qe1 {[%emt 0:01:14]} Na5 {[%emt 0:02:44]} 12. Rd1 {[%emt 0:05:06]} b5 {[%emt 0:03:51]} 13. Bd3 {[%emt 0:12:27]} Bb7 {[%emt 0:01:34]} 14. Bc1 {[%emt 0:07:02]} Nd7 {[%emt 0:14:07]} 15. Nce2 {[%emt 0:22:02]} Rac8 {[%emt 0:15:42]} 16. b3 {[%emt 0:07:46]} Bf6 {[%emt 0:19:45]} 17. Bd2 {[%emt 0:06:24]} Nc4 {[%emt 0:06:43]} 18. Bc1 {[%emt 0:04:30]} Ncb6 {[%emt 0:01:09]} 19. Bb2 {[%emt 0:09:08]} Nc5 {[%emt 0:02:21]} 20. Ng3 {[%emt 0:00:29]} 1-0

[Event "IIFL Wealth 4th Mumbai GM"]
[Site "Mumbai"]
[Date "2019.01.07"]
[Round "9"]
[White "Triton, Maxime"]
[Black "Dhungel, Uttam"]
[Result "1-0"]
[ECO "B40"]
[WhiteElo "1937"]
[BlackElo "1587"]
[Annotator "NA"]
[PlyCount "41"]
[EventDate "2018.12.30"]
[EventType "swiss"]
[EventCountry "IND"]
[SourceTitle "playchess.com"]
[Source "ChessBase"]
[SourceQuality "1"]
[TimeControl "40/5400+30:1800+30"]

1. e4 c5 2. Nf3 e6 3. Nc3 Nc6 4. Be2 Qc7 5. d4 cxd4 6. Nxd4 a6 7. O-O Nf6 8. Be3 h5 9. h3 b5 10. a3 Bb7 11. Qd2 Be7 12. f4 Rd8 13. Bf3 d6 14. Qf2 Nd7 15. f5 Nxd4 16. Bxd4 e5 17. Be3 Rc8 18. Rad1 h4 19. Rd2 O-O 20. Rfd1 Bc6 21. g3 1-0

[Event "IIFL Wealth 4th Mumbai GM"]
[Site "Mumbai"]
[Date "2019.01.07"]
[Round "9"]
[White "Nepal, Prakash"]
[Black "Nayem, Haque"]
[Result "1-0"]
[ECO "E85"]
[WhiteElo "1902"]
[BlackElo "2083"]
[Annotator "NA RC"]
[PlyCount "67"]
[EventDate "2018.12.30"]
[EventType "swiss"]
[EventCountry "IND"]
[SourceTitle "playchess.com"]
[Source "ChessBase"]
[SourceQuality "1"]
[TimeControl "40/5400+30:1800+30"]

1. d4 {[%emt 0:00:00]} Nf6 {[%emt 0:04:21]} 2. c4 {[%emt 0:00:00]} g6 {[%emt 0:00:07]} 3. Nc3 {[%emt 0:00:00]} Bg7 {[%emt 0:00:06]} 4. e4 {[%emt 0:00:00]} d6 {[%emt 0:00:05]} 5. f3 {[%emt 0:00:00]} O-O {[%emt 0:00:06]} 6. Be3 {[%emt 0:00:04]} e5 {[%emt 0:00:05]} 7. Nge2 {[%emt 0:00:47]} Nc6 {[%emt 0:00:25]} 8. d5 {[%emt 0:00:22]} Ne7 {[%emt 0:00:02]} 9. g4 {[%emt 0:00:37]} a6 {[%emt 0:02:16]} 10. Ng3 {[%emt 0:01:05]} Nd7 {[%emt 0:01:33]} 11. Rg1 {[%emt 0:05:06]} Nf6 {[%emt 0:02:52]} 12. h4 {[%emt 0:01:07]} Bd7 {[%emt 0:01:00]} 13. Qd2 {[%emt 0:04:36]} Kh8 {[%emt 0:04:43]} 14. h5 {[%emt 0:03:49]} Kg8 {[%emt 0:00:40]} 15. Bd3 {[%emt 0:23:17]} Rb8 {[%emt 0:00:35]} 16. Rh1 {[%emt 0:07:33]} Ne8 {[%emt 0:10:29]} 17. Bh6 {[%emt 0:10:42]} f6 {[%emt 0:02:57]} 18. hxg6 {[%emt 0:06:36]} hxg6 {[%emt 0:00:42]} 19. O-O-O {[%emt 0:02:39]} b5 {[%emt 0:00:34]} 20. cxb5 {[%emt 0:06:49]} axb5 {[%emt 0:00:10]} 21. Rdg1 {[%emt 0:00:51]} b4 {[%emt 0:01:38]} 22. Nd1 {[%emt 0:01:28]} Kf7 {[%emt 0:01:01]} 23. Bxg7 {[%emt 0:00:54]} Nxg7 {[%emt 0:00:03]} 24. Rh7 {[%emt 0:00:12]} Rh8 {[%emt 0:00:40]} 25. Rgh1 {[%emt 0:00:17]} Rxh7 {[%emt 0:00:55]} 26. Rxh7 {[%emt 0:00:02]} Qg8 {[%emt 0:00:18]} 27. Qh6 {[%emt 0:00:26]} Qf8 {[%emt 0:00:40]} 28. Ne3 {[%emt 0:02:42]} Ng8 {[%emt 0:04:48]} 29. Qh4 {[%emt 0:00:32]} Ke8 {[%emt 0:04:39]} 30. Rh8 {[%emt 0:02:22]} b3 {[%emt 0:02:34]} 31. a3 {[%emt 0:01:16]} Kf7 {[%emt 0:01:04]} 32. Qh7 {[%emt 0:00:22]} Ra8 {[%emt 0:04:58]} 33. Ng2 {[%emt 0:04:15]} Qb8 {[%emt 0:02:28]} 34. Nh4 {[%emt 0:01:32]} 1-0

[Event "IIFL Wealth 4th Mumbai GM"]
[Site "Mumbai"]
[Date "2019.01.07"]
[Round "9"]
[White "Arya Nirag Shah"]
[Black "Md.abzid, Rahman"]
[Result "0-1"]
[ECO "A80"]
[WhiteElo "1812"]
[BlackElo "2040"]
[Annotator "NA RC"]
[PlyCount "79"]
[EventDate "2018.12.30"]
[EventType "swiss"]
[EventCountry "IND"]
[SourceTitle "playchess.com"]
[Source "ChessBase"]
[SourceQuality "1"]
[TimeControl "40/5400+30:1800+30"]

1. d4 {[%emt 0:06:56]} f5 {[%emt 0:00:17]} 2. Nf3 {[%emt 0:00:05]} e6 {[%emt 0:00:11]} 3. Bg5 {[%emt 0:00:06]} Nf6 {[%emt 0:00:28]} 4. Nbd2 {[%emt 0:00:07]} d5 {[%emt 0:00:37]} 5. e3 {[%emt 0:00:12]} Nbd7 {[%emt 0:01:04]} 6. c4 {[%emt 0:00:06]} Be7 {[%emt 0:00:35]} 7. Bd3 {[%emt 0:00:10]} Ne4 {[%emt 0:00:50]} 8. Bxe7 {[%emt 0:00:06]} Qxe7 {[%emt 0:00:17]} 9. Qc2 {[%emt 0:00:16]} c6 {[%emt 0:00:12]} 10. Rb1 {[%emt 0:00:52]} a5 {[%emt 0:02:23]} 11. O-O {[%emt 0:00:51]} g5 {[%emt 0:00:12]} 12. Ne5 {[%emt 0:01:19]} Nxe5 {[%emt 0:00:58]} 13. dxe5 {[%emt 0:00:09]} Qg7 {[%emt 0:00:13]} 14. Bxe4 {[%emt 0:07:30]} fxe4 {[%emt 0:01:48]} 15. Qc3 {[%emt 0:00:54]} g4 {[%emt 0:02:43]} 16. Rfc1 {[%emt 0:45:25]} O-O {[%emt 0:04:08]} 17. a3 {[%emt 0:02:49]} Bd7 {[%emt 0:10:51]} 18. Nb3 {[%emt 0:01:43]} b6 {[%emt 0:01:16]} 19. cxd5 {[%emt 0:12:27]} exd5 {[%emt 0:02:22]} 20. e6 {[%emt 0:01:11]} Be8 {[%emt 0:04:19]} 21. Qxg7+ {[%emt 0:01:58]} Kxg7 {[%emt 0:00:02]} 22. Nd4 {[%emt 0:01:03]} c5 {[%emt 0:02:00]} 23. Ne2 {[%emt 0:00:30]} Kf6 {[%emt 0:00:03]} 24. Nf4 {[%emt 0:00:42]} Ke5 {[%emt 0:00:03]} 25. g3 {[%emt 0:05:29]} Rxf4 {[%emt 0:07:23]} 26. gxf4+ {[%emt 0:00:27]} Kxe6 {[%emt 0:00:01]} 27. b4 {[%emt 0:03:39]} axb4 {[%emt 0:00:10]} 28. axb4 {[%emt 0:00:44]} c4 {[%emt 0:00:08]} 29. Ra1 {[%emt 0:01:59]} Ba4 {[%emt 0:01:29]} 30. Rc3 {[%emt 0:02:43]} b5 {[%emt 0:00:02]} 31. Kf1 {[%emt 0:00:49]} Rf8 {[%emt 0:02:57]} 32. Ke2 {[%emt 0:00:30]} d4 {[%emt 0:00:55]} 33. exd4 {[%emt 0:00:53]} Rxf4 {[%emt 0:00:23]} 34. Ra2 {[%emt 0:01:17]} Kd5 {[%emt 0:00:31]} 35. Rd2 {[%emt 0:00:40]} h5 {[%emt 0:01:52]} 36. h3 {[%emt 0:00:33]} Rf3 37. Rxf3 exf3+ 38. Ke3 c3 39. Ra2 c2 40. Ra1 0-1

[Event "IIFL Wealth 4th Mumbai GM"]
[Site "Mumbai"]
[Date "2019.01.07"]
[Round "9"]
[White "Regmi, Shikhar"]
[Black "Bhasima, Prashan"]
[Result "1/2-1/2"]
[ECO "C41"]
[WhiteElo "1610"]
[BlackElo "1658"]
[Annotator "NA RC"]
[PlyCount "71"]
[EventDate "2018.12.30"]
[EventType "swiss"]
[EventCountry "IND"]
[SourceTitle "playchess.com"]
[Source "ChessBase"]
[SourceQuality "1"]
[TimeControl "40/5400+30:1800+30"]

1. e4 {[%emt 0:00:00]} e5 {[%emt 0:02:52]} 2. Nf3 {[%emt 0:00:35]} d6 {[%emt 0:00:05]} 3. d4 {[%emt 0:00:30]} exd4 {[%emt 0:00:03]} 4. Nxd4 {[%emt 0:00:30]} Nf6 {[%emt 0:00:18]} 5. Bg5 {[%emt 0:00:37]} Be7 {[%emt 0:00:02]} 6. Bd3 {[%emt 0:00:50]} h6 {[%emt 0:00:18]} 7. Be3 {[%emt 0:00:24]} c5 {[%emt 0:02:23]} 8. Ne2 {[%emt 0:01:13]} Bd7 {[%emt 0:03:09]} 9. Nbc3 {[%emt 0:00:59]} Nc6 {[%emt 0:00:52]} 10. Ng3 {[%emt 0:00:49]} a6 {[%emt 0:00:26]} 11. O-O {[%emt 0:00:55]} b5 {[%emt 0:04:38]} 12. Nd5 {[%emt 0:01:08]} Nxd5 {[%emt 0:00:47]} 13. exd5 {[%emt 0:00:11]} Ne5 {[%emt 0:00:18]} 14. Bf5 {[%emt 0:00:36]} Bf6 {[%emt 0:01:57]} 15. Rb1 {[%emt 0:01:27]} g6 {[%emt 0:02:30]} 16. Bxd7+ {[%emt 0:00:40]} Qxd7 {[%emt 0:01:04]} 17. Ne4 {[%emt 0:00:34]} Bg7 {[%emt 0:01:37]} 18. f4 {[%emt 0:00:23]} Nc4 {[%emt 0:01:22]} 19. Bc1 {[%emt 0:01:01]} f5 {[%emt 0:00:43]} 20. Ng3 {[%emt 0:00:50]} O-O {[%emt 0:00:58]} 21. b3 {[%emt 0:00:13]} Bd4+ {[%emt 0:03:22]} 22. Kh1 {[%emt 0:01:36]} Nb6 {[%emt 0:04:58]} 23. Bb2 {[%emt 0:00:23]} Bxb2 {[%emt 0:00:40]} 24. Rxb2 {[%emt 0:00:07]} Rfe8 {[%emt 0:00:17]} 25. Rb1 {[%emt 0:00:12]} Re7 {[%emt 0:00:23]} 26. Nh5 {[%emt 0:00:46]} gxh5 {[%emt 0:01:11]} 27. Qxh5 {[%emt 0:00:15]} Rae8 {[%emt 0:00:41]} 28. Qg6+ {[%emt 0:00:28]} Rg7 {[%emt 0:01:09]} 29. Qxh6 {[%emt 0:00:13]} Re2 {[%emt 0:00:47]} 30. Rbe1 {[%emt 0:00:38]} Rxe1 {[%emt 0:00:25]} 31. Rxe1 {[%emt 0:00:05]} Re7 {[%emt 0:00:51]} 32. Qg6+ {[%emt 0:00:30]} Kf8 {[%emt 0:01:24]} 33. Qf6+ {[%emt 0:00:15]} Kg8 {[%emt 0:01:08]} 34. Qg6+ {[%emt 0:00:01]} Kf8 {[%emt 0:00:49]} 35. Qf6+ {[%emt 0:00:23]} Kg8 36. Qg6+ 1/2-1/2

[Event "IIFL Wealth 4th Mumbai GM"]
[Site "Mumbai"]
[Date "2019.01.07"]
[Round "9"]
[White "Ahsan, Ali Jewel"]
[Black "Shah, Ram Surat Prasad"]
[Result "0-1"]
[ECO "C00"]
[WhiteElo "1363"]
[BlackElo "1639"]
[Annotator "NA"]
[PlyCount "67"]
[EventDate "2018.12.30"]
[EventType "swiss"]
[EventCountry "IND"]
[SourceTitle "playchess.com"]
[Source "ChessBase"]
[SourceQuality "1"]
[TimeControl "40/5400+30:1800+30"]

1. e4 {[%emt 0:04:40]} e6 {[%emt 0:00:00]} 2. Nf3 {[%emt 0:00:37]} d5 {[%emt 0:00:01]} 3. exd5 {[%emt 0:00:54]} exd5 {[%emt 0:00:10]} 4. d4 {[%emt 0:00:25]} Nf6 {[%emt 0:00:17]} 5. Bd3 {[%emt 0:01:39]} Bd6 {[%emt 0:00:54]} 6. Nc3 {[%emt 0:00:52]} O-O {[%emt 0:00:22]} 7. Bg5 {[%emt 0:01:50]} Re8+ {[%emt 0:01:09]} 8. Be2 {[%emt 0:00:54]} Be6 {[%emt 0:03:48]} 9. Nb5 {[%emt 0:03:35]} Be7 {[%emt 0:01:07]} 10. Qd3 {[%emt 0:02:29]} Nbd7 {[%emt 0:01:45]} 11. Ne5 {[%emt 0:04:17]} c5 {[%emt 0:02:01]} 12. O-O {[%emt 0:03:51]} a6 {[%emt 0:04:40]} 13. Nxd7 {[%emt 0:03:52]} Qxd7 {[%emt 0:06:08]} 14. Nc3 {[%emt 0:02:47]} Bf5 {[%emt 0:04:22]} 15. Qd2 {[%emt 0:04:55]} cxd4 {[%emt 0:03:25]} 16. Qxd4 {[%emt 0:01:36]} Bxc2 {[%emt 0:03:07]} 17. Bf3 {[%emt 0:02:03]} Rad8 {[%emt 0:14:09]} 18. Bxf6 {[%emt 0:02:38]} Bxf6 {[%emt 0:04:12]} 19. Qxd5 {[%emt 0:01:30]} Bxc3 {[%emt 0:03:05]} 20. Qxd7 {[%emt 0:00:57]} Rxd7 {[%emt 0:00:03]} 21. bxc3 {[%emt 0:00:18]} Rc7 {[%emt 0:03:03]} 22. Rac1 {[%emt 0:01:12]} Ba4 {[%emt 0:02:02]} 23. c4 {[%emt 0:01:52]} Bc6 {[%emt 0:01:13]} 24. Bd5 {[%emt 0:06:04]} Kf8 {[%emt 0:00:34]} 25. Rb1 {[%emt 0:01:11]} Bxd5 {[%emt 0:03:02]} 26. cxd5 {[%emt 0:00:22]} Re2 {[%emt 0:01:10]} 27. a4 {[%emt 0:00:36]} Rd2 {[%emt 0:01:00]} 28. Rfd1 {[%emt 0:00:51]} Rxd1+ {[%emt 0:00:59]} 29. Rxd1 {[%emt 0:00:18]} Ke8 {[%emt 0:00:27]} 30. f4 {[%emt 0:05:16]} Kd7 {[%emt 0:03:37]} 31. Kf2 {[%emt 0:08:05]} Rc4 {[%emt 0:04:48]} 32. Rb1 {[%emt 0:03:33]} Kc7 {[%emt 0:07:26]} 33. d6+ {[%emt 0:02:25]} Kxd6 {[%emt 0:00:44]} 34. Rxb7 {[%emt 0:00:52]} 0-1

[Event "IIFL Wealth 4th Mumbai GM"]
[Site "Mumbai"]
[Date "2019.01.07"]
[Round "9"]
[White "Kafle, Binod"]
[Black "Thapa, Krishna"]
[Result "0-1"]
[ECO "B20"]
[WhiteElo "1191"]
[BlackElo "2024"]
[Annotator "NA RC"]
[PlyCount "58"]
[EventDate "2018.12.30"]
[EventType "swiss"]
[EventCountry "IND"]
[SourceTitle "playchess.com"]
[Source "ChessBase"]
[SourceQuality "1"]
[TimeControl "40/5400+30:1800+30"]

1. e4 {[%emt 0:00:05]} c5 {[%emt 0:00:00]} 2. Bc4 {[%emt 0:00:20]} Nc6 {[%emt 0:00:00]} 3. d3 {[%emt 0:00:33]} e6 {[%emt 0:00:00]} 4. Be3 {[%emt 0:00:16]} Nf6 {[%emt 0:00:00]} 5. Nc3 {[%emt 0:00:24]} a6 {[%emt 0:00:00]} 6. a3 {[%emt 0:00:22]} Be7 {[%emt 0:00:00]} 7. Nge2 {[%emt 0:01:03]} d5 {[%emt 0:00:05]} 8. exd5 {[%emt 0:01:35]} exd5 {[%emt 0:00:02]} 9. Nxd5 {[%emt 0:01:43]} Nxd5 {[%emt 0:00:02]} 10. Bd2 {[%emt 0:00:42]} O-O {[%emt 0:00:10]} 11. O-O {[%emt 0:00:26]} Ne5 {[%emt 0:00:55]} 12. Bb3 {[%emt 0:01:20]} b5 {[%emt 0:00:24]} 13. f4 {[%emt 0:02:03]} Nc6 {[%emt 0:00:29]} 14. c4 {[%emt 0:01:06]} Nf6 {[%emt 0:00:17]} 15. cxb5 {[%emt 0:01:13]} axb5 {[%emt 0:00:02]} 16. Be3 {[%emt 0:01:01]} Ng4 {[%emt 0:00:16]} 17. Bf2 {[%emt 0:00:35]} Nxf2 {[%emt 0:00:07]} 18. Rxf2 {[%emt 0:00:23]} Bg4 {[%emt 0:00:02]} 19. Qc2 {[%emt 0:00:53]} Bxe2 {[%emt 0:00:10]} 20. Rxe2 {[%emt 0:00:35]} Nd4 {[%emt 0:00:07]} 21. Qd1 {[%emt 0:00:45]} Nxe2+ {[%emt 0:00:19]} 22. Qxe2 {[%emt 0:00:11]} Bf6 {[%emt 0:00:08]} 23. Kh1 {[%emt 0:00:40]} Re8 {[%emt 0:00:06]} 24. Qc2 {[%emt 0:00:39]} Rxa3 {[%emt 0:00:25]} 25. bxa3 {[%emt 0:00:53]} Bxa1 {[%emt 0:00:02]} 26. Qd1 {[%emt 0:00:46]} Qe7 {[%emt 0:00:13]} 27. Bxf7+ {[%emt 0:01:23]} Kxf7 {[%emt 0:00:09]} 28. g3 Qe1+ 29. Qxe1 Rxe1+ 0-1